fUST/lending_fUST_20250816
["ID","MTS","AMOUNT","RATE_DAILY","PERIOD"]
[379643464,1755354653006,-480.0,0.00022738,3]
[379643466,1755354653015,-499.67140035,0.00022738,3]
[379643468,1755354653024,-480.0,0.00022738,3]
[379643470,1755354653033,-480.0,0.00022738,3]
[379643472,1755354653042,-290.57340762,0.00022738,3]
[379643474,1755354653052,-460.0,0.00022738,3]
[379643476,1755354653061,-440.0,0.00022738,3]
[379643478,1755354653070,-480.0,0.00022738,3]
[379643480,1755354653079,-611.70514471,0.00022738,3]
[379643482,1755354653088,-480.0,0.00022738,3]
[379643484,1755354653098,-460.0,0.00022738,3]
[379643486,1755354653107,-460.0,0.00022738,3]
[379643488,1755354653116,-480.0,0.00022738,3]
[379643490,1755354653125,-498.84,0.00022738,3]
[379643492,1755354653136,-480.0,0.00022738,3]
[379643494,1755354653145,-480.0,0.00022738,3]
[379643496,1755354653154,-464.85718934,0.00022738,3]
[379643498,1755354653163,-480.0,0.00022738,3]
[379643500,1755354653172,-480.0,0.00022738,3]
[379643502,1755354653181,-480.0,0.00022738,3]
[379643504,1755354653190,-420.0,0.00022738,3]
[379643506,1755354653199,-524.89,0.00022738,3]
[379643508,1755354653208,-480.0,0.00022738,3]
[379643509,1755354653217,-500.0,0.00022738,3]
[379643511,1755354653226,-480.0,0.00022738,3]
[379643513,1755354653236,-198.76266674,0.00022738,3]
[379643515,1755354653245,-480.0,0.00022738,3]
[379643517,1755354653254,-480.0,0.00022738,3]
[379643519,1755354653263,-480.0,0.00022738,3]
[379643521,1755354653272,-460.38566954,0.00022738,3]
[379643523,1755354653281,-480.0,0.00022738,3]
[379643525,1755354653290,-480.0,0.00022738,3]
[379643527,1755354653299,-480.0,0.00022738,3]
[379643529,1755354653310,-480.0,0.00022738,3]
[379643531,1755354653319,-480.0,0.00022738,3]
[379643533,1755354653330,-440.0,0.00022738,3]
[379643535,1755354653341,-480.0,0.00022738,3]
[379643537,1755354653352,-480.0,0.00022738,3]
[379643539,1755354653362,-1511.71,0.00022738,3]
[379643541,1755354653373,-480.0,0.00022738,3]
[379643544,1755354653383,-480.0,0.00022738,3]
[379643546,1755354653394,-480.0,0.00022738,3]
[379643548,1755354653403,-1638.26,0.00022738,3]
[379643550,1755354653414,-3032.74,0.00022738,3]
[379643551,1755354653424,-1231.08,0.00022738,3]
[379643553,1755354653433,-580.912338,0.00022738,7]
[379643555,1755354653442,-580.912338,0.00022738,7]
[379643557,1755354653451,-480.0,0.00022738,3]
[379643559,1755354653461,-151.0,0.00022738,7]
[379643561,1755354653470,-1613.41,0.00022738,3]
[379643563,1755354653479,-480.0,0.00022738,3]
[379643565,1755354653488,-480.0,0.00022738,3]
[379643567,1755354653498,-480.0,0.00022738,3]
[379643569,1755354653508,-979.66,0.00022738,3]
[379643571,1755354653518,-480.0,0.00022738,3]
[379643573,1755354653527,-480.0,0.00022738,3]
[379643575,1755354653537,-978.8,0.00022738,3]
[379643577,1755354653547,-1216.7,0.00022738,3]
[379643579,1755354653556,-800.65,0.00022738,3]
[379643581,1755354653567,-705.96,0.00022738,3]
[379643583,1755354653576,-656.43,0.00022738,3]
[379643585,1755354653585,-480.0,0.00022738,3]
[379643587,1755354653595,-1136.07,0.00022738,3]
[379643589,1755354653604,-440.0,0.00022738,3]
[379643591,1755354653613,-495.09,0.00022738,3]
[379643593,1755354653622,-3703.75,0.00022738,3]
[379643595,1755354653632,-480.0,0.00022738,3]
[379643597,1755354653640,-13932.14,0.00022738,3]
[379643599,1755354653650,-480.0,0.00022738,3]
[379643601,1755354653659,-480.0,0.00022738,3]
[379643603,1755354653668,-480.0,0.00022738,3]
[379643605,1755354653677,-480.0,0.00022738,3]
[379643607,1755354653686,-480.0,0.00022738,3]
[379643609,1755354653696,-1682.2,0.00022738,3]
[379643611,1755354653706,-480.0,0.00022738,3]
[379643613,1755354653717,-480.0,0.00022738,3]
[379643615,1755354653726,-268.931966,0.00022739,7]
[379643617,1755354653736,-268.931966,0.00022739,7]
[379643619,1755354653746,-151.0,0.00022739,7]
[379643621,1755354653755,-490.604318,0.00022739,7]
[379643623,1755354653764,-490.604318,0.00022739,7]
[379643625,1755354653775,-1181.962509,0.00022739,7]
[379643627,1755354653784,-151.0,0.00022739,7]
[379643629,1755354653793,-1076.565136,0.00022739,7]
[379643631,1755354653802,-1076.565136,0.00022739,7]
[379643633,1755354653811,-151.0,0.00022739,7]
[379643635,1755354653821,-151.0,0.00022739,7]
[379643636,1755354653830,-151.0,0.00022739,7]
[379643638,1755354653839,-657.181103,0.00022739,7]
[379643640,1755354653848,-657.181103,0.00022739,7]
[379643642,1755354653858,-526.5,0.00022739,3]
[379643656,1755354653976,-480.0,0.00022739,3]
[379643658,1755354653985,-480.0,0.00022739,3]
[379643660,1755354653995,-605.16,0.00022739,3]
[379643662,1755354654004,-480.0,0.00022739,3]
[379643664,1755354654014,-480.0,0.00022739,3]
[379643666,1755354654023,-480.0,0.00022739,3]
[379643668,1755354654032,-262.78827076,0.00022739,3]
[379643670,1755354654042,-480.0,0.00022739,3]
[379643672,1755354654051,-386.87750768,0.00022739,3]
[379643674,1755354654061,-480.0,0.00022739,3]
[379643676,1755354654071,-480.0,0.00022739,3]
[379643678,1755354654080,-489.51,0.00022739,3]
[379643680,1755354654089,-480.0,0.00022739,3]
[379643682,1755354654099,-480.0,0.00022739,3]
[379643684,1755354654108,-248.32809646,0.00022739,3]
[379643686,1755354654118,-480.0,0.00022739,3]
[379643688,1755354654128,-480.0,0.00022739,3]
[379643690,1755354654138,-480.0,0.00022739,3]
[379643692,1755354654147,-480.0,0.00022739,3]
[379643694,1755354654157,-480.0,0.00022739,3]
[379643696,1755354654166,-555.99,0.00022739,3]
[379643698,1755354654175,-496.27,0.00022739,3]
[379643699,1755354654186,-862.54,0.00022739,3]
[379643701,1755354654196,-480.0,0.00022739,3]
[379643703,1755354654205,-480.0,0.00022739,3]
[379643705,1755354654215,-710.03,0.00022739,3]
[379643707,1755354654224,-480.0,0.00022739,3]
[379643709,1755354654233,-227.396676,0.00022739,7]
[379643711,1755354654242,-674.64,0.00022739,3]
[379643713,1755354654251,-1029.27,0.00022739,3]
[379643715,1755354654260,-480.0,0.00022739,3]
[379643717,1755354654269,-227.396676,0.00022739,7]
[379643719,1755354654278,-480.0,0.00022739,3]
[379643721,1755354654288,-480.0,0.00022739,3]
[379643723,1755354654297,-480.0,0.00022739,3]
[379643724,1755354654307,-633.67,0.00022739,3]
[379643725,1755354654315,-480.0,0.00022739,3]
[379643726,1755354654324,-480.0,0.00022739,3]
[379643727,1755354654338,-480.0,0.00022739,3]
[379643728,1755354654348,-195.015106,0.00022739,7]
[379643729,1755354654357,-195.015106,0.00022739,7]
[379643730,1755354654365,-494.21,0.00022739,3]
[379643731,1755354654376,-480.0,0.00022739,3]
[379643732,1755354654386,-480.0,0.00022739,3]
[379643733,1755354654395,-662.77,0.00022739,3]
[379643734,1755354654406,-702.8,0.00022739,3]
[379643735,1755354654415,-480.0,0.00022739,3]
[379643736,1755354654424,-2144.28,0.00022739,3]
[379643737,1755354654433,-480.0,0.00022739,3]
[379643738,1755354654442,-460.0,0.00022739,3]
[379643739,1755354654451,-480.0,0.00022739,3]
[379643740,1755354654462,-692.7,0.00022739,3]
[379643741,1755354654471,-480.0,0.00022739,3]
[379643742,1755354654480,-480.0,0.00022739,3]
[379643743,1755354654489,-320.0,0.00022739,3]
[379643744,1755354654499,-608.52,0.00022739,3]
[379643745,1755354654508,-480.0,0.00022739,3]
[379643746,1755354654517,-482.47,0.00022739,3]
[379643747,1755354654527,-688.51,0.00022739,3]
[379643748,1755354654536,-480.0,0.00022739,3]
[379643749,1755354654545,-632.37,0.00022739,3]
[379643750,1755354654555,-537.62,0.00022739,3]
[379643751,1755354654564,-480.0,0.00022739,3]
[379643752,1755354654573,-175.73310218,0.00022739,3]
[379643753,1755354654582,-803.93,0.00022739,3]
[379643754,1755354654591,-1167.11,0.00022739,3]
[379643755,1755354654601,-390.34653919,0.00022739,3]
[379643756,1755354654611,-440.0,0.00022739,3]
[379643757,1755354654619,-480.0,0.00022739,3]
[379643758,1755354654628,-440.0,0.00022739,3]
[379643759,1755354654639,-1748.71,0.00022739,3]
[379643760,1755354654648,-480.0,0.00022739,3]
[379643761,1755354654658,-206.992,0.00022739,7]
[379643762,1755354654667,-480.0,0.00022739,3]
[379643763,1755354654676,-206.992,0.00022739,7]
[379643764,1755354654686,-400.0,0.00022739,3]
[379643765,1755354654695,-480.0,0.00022739,3]
[379643766,1755354654705,-150.49356383,0.00022739,3]
[379643881,1755354655860,-0.0057809,0.00021917,3]
[379643883,1755354655872,-393.32513956,0.00021917,3]
[379643887,1755354655894,-86.66907954,0.00021917,3]
[379643889,1755354655903,-5438.32,0.00021917,3]
[379643891,1755354655913,-480.0,0.00021917,3]
[379643893,1755354655923,-480.0,0.00022191,3]
[379643894,1755354655933,-5438.32,0.00022191,3]
[379643896,1755354655943,-480.0,0.00022465,3]
[379643899,1755354655958,-5438.32,0.00022465,3]
[379643901,1755354655968,-329.50643617,0.00022739,3]
[379643902,1755354655978,-1658.19,0.00022739,3]
[379643905,1755354655988,-986.58,0.00022739,3]
[379643906,1755354655997,-480.0,0.00022739,3]
[379643908,1755354656008,-151.0,0.00022739,7]
[379643910,1755354656020,-2568.21,0.00022739,3]
[379643912,1755354656030,-480.0,0.00022739,3]
[379643915,1755354656040,-480.0,0.00022739,3]
[379643916,1755354656050,-480.0,0.00022739,3]
[379643918,1755354656059,-480.0,0.00022739,3]
[379643921,1755354656069,-480.0,0.00022739,3]
[379643922,1755354656079,-1272.08,0.00022739,3]
[379643925,1755354656089,-480.0,0.00022739,3]
[379643927,1755354656099,-151.0,0.00022739,7]
[379643929,1755354656109,-151.0,0.00022739,7]
[379643931,1755354656118,-230.02555487,0.00022739,3]
[379643932,1755354656128,-400.0,0.00022739,3]
[379643935,1755354656139,-480.0,0.00022739,3]
[379643937,1755354656149,-480.0,0.00022739,3]
[379643939,1755354656159,-10251.48,0.00022739,3]
[379643940,1755354656168,-599.9,0.00022739,3]
[379643942,1755354656178,-209.67399361,0.00022739,3]
[379643944,1755354656188,-440.0,0.00022739,3]
[379643946,1755354656197,-480.0,0.00022739,3]
[379643948,1755354656207,-480.0,0.00022739,3]
[379643950,1755354656217,-475.93224199,0.00022739,3]
[379643952,1755354656227,-780.04,0.00022739,3]
[379643954,1755354656237,-480.0,0.00022739,3]
[379643956,1755354656247,-480.0,0.00022739,3]
[379643958,1755354656257,-480.0,0.00022739,3]
[379643960,1755354656267,-440.0,0.00022739,3]
[379643962,1755354656276,-480.0,0.00022739,3]
[379643964,1755354656286,-326.8354284,0.00022739,3]
[379643966,1755354656296,-603.19666542,0.00022739,7]
[379643968,1755354656309,-889.35917858,0.00022739,7]
[379643970,1755354656319,-460.0,0.00022739,3]
[379643972,1755354656331,-480.0,0.00022739,3]
[379643974,1755354656342,-480.0,0.00022739,3]
[379643976,1755354656352,-1492.555844,0.00022739,7]
[379643978,1755354656362,-480.0,0.00022739,3]
[379643980,1755354656373,-477.85554262,0.00022739,3]
[379644010,1755354656666,-480.0,0.00021917,3]
[379644012,1755354656676,-380.0,0.00021917,3]
[379644015,1755354656688,-480.0,0.00021917,3]
[379644016,1755354656697,-36.63445738,0.00022739,3]
[379644018,1755354656707,-613.83,0.00022739,3]
[379644021,1755354656718,-351.17272675,0.00022739,3]
[379644022,1755354656727,-480.0,0.00022739,3]
[379644024,1755354656738,-480.0,0.00022739,3]
[379644026,1755354656748,-855.08,0.00022739,3]
[379644029,1755354656758,-1167.32,0.00022739,3]
[379644030,1755354656769,-480.0,0.00022739,3]
[379644032,1755354656779,-480.0,0.00022739,3]
[379644034,1755354656789,-556.77,0.00022739,3]
[379644036,1755354656799,-480.0,0.00022739,3]
[379644039,1755354656809,-460.0,0.00022739,3]
[379644040,1755354656819,-480.0,0.00022739,3]
[379644042,1755354656828,-480.0,0.00022739,3]
[379644044,1755354656838,-480.0,0.00022739,3]
[379644046,1755354656848,-869.7,0.00022739,3]
[379644048,1755354656857,-495.91,0.00022739,3]
[379644050,1755354656867,-879.67,0.00022739,3]
[379644052,1755354656876,-694.86,0.00022739,3]
[379644054,1755354656885,-1367.28,0.00022739,3]
[379644056,1755354656894,-480.0,0.00022739,3]
[379644058,1755354656903,-480.0,0.00022739,3]
[379644060,1755354656912,-2000.06,0.00022739,3]
[379644062,1755354656922,-705.6,0.00022739,3]
[379644064,1755354656931,-480.0,0.00022739,3]
[379644066,1755354656940,-480.0,0.00022739,3]
[379644068,1755354656950,-480.0,0.00022739,3]
[379644070,1755354656960,-480.0,0.00022739,3]
[379644072,1755354656969,-1971.17,0.00022739,3]
[379644074,1755354656979,-480.27,0.00022739,3]
[379644076,1755354656988,-480.0,0.00022739,3]
[379644078,1755354656997,-480.0,0.00022739,3]
[379644080,1755354657006,-1460.97,0.00022739,3]
[379644082,1755354657015,-420.0,0.00022739,3]
[379644084,1755354657024,-1458.06,0.00022739,3]
[379644086,1755354657034,-1313.45,0.00022739,3]
[379644088,1755354657043,-438.36404806,0.00022739,3]
[379644090,1755354657052,-1028.35,0.00022739,3]
[379644092,1755354657061,-480.0,0.00022739,3]
[379644094,1755354657070,-341.15443763,0.00022739,3]
[379644096,1755354657079,-12.61873808,0.00022739,3]
[379644121,1755354657441,-467.38126192,0.00022739,3]
[379644123,1755354657451,-62.46442735,0.00022739,7]
[379644739,1755354671118,700.0,0.00019999,2]
[379644744,1755354719057,952.92648767,0.000199,2]
[379644753,1755354763290,1267.0,0.0002,2]
[379644754,1755354768326,-180.18728878,0.00020041,2]
[379644755,1755354771027,-197.96302602,0.00020041,2]
[379644756,1755354772597,-165.30130836,0.00020041,2]
[379644758,1755354776205,-234.63103739,0.00020041,2]
[379644759,1755354777726,-302.03697398,0.00020041,2]
[379644760,1755354780086,-194.15731026,0.00020041,2]
[379644761,1755354780626,152.90992746,0.00019987,2]
[379644762,1755354782111,-147.06255377,0.00020041,2]
[379644763,1755354815060,-482.38547095,0.00020084,2]
[379644764,1755354883403,424.92703465,0.00019986,2]
[379644765,1755354884105,-178.66050144,0.00020011,2]
[379644766,1755354886779,-246.26653317,0.00020011,2]
[379644767,1755354891587,950.53290529,0.000199,2]
[379644768,1755354928829,8682.12960501,0.00019216,2]
[379644769,1755354928855,20000.0,0.00019216,2]
[379644770,1755354928881,20000.0,0.00019216,2]
[379644771,1755354928905,20000.0,0.00019216,2]
[379644772,1755354928930,20000.0,0.00019216,2]
[379644773,1755354928953,20000.0,0.00019216,2]
[379644774,1755354928977,12513.48948529,0.00019216,2]
[379644775,1755354938484,700.0,0.00019999,2]
[379644777,1755355027706,254.95622079,0.00019985,2]
[379644778,1755355063283,1035.7884218,0.000199,2]
[379644779,1755355130431,203.96497664,0.00019986,2]
[379644780,1755355250643,1000.61383414,0.000199,2]
[379644781,1755355292831,592.934668,0.00013699,2]
[379644782,1755355318615,171.17976313,0.00019577,2]
[379644783,1755355324603,217.277,0.00028767,120]
[379644784,1755355334834,163.17198128,0.00019985,2]
[379644785,1755355352036,3363.90064893,0.00019104,2]
[379644786,1755355352060,6636.09935107,0.00019104,2]
[379644787,1755355373136,163.17198128,0.00019985,2]
[379644788,1755355400992,1000.0,0.00028,120]
[379644789,1755355430441,1093.16726222,0.000199,2]
[379644790,1755355477041,163.17198128,0.00019986,2]
[379644791,1755355530755,11944.38942415,0.0002,2]
[379644792,1755355530785,20000.0,0.0002,2]
[379644793,1755355530809,20000.0,0.0002,2]
[379644794,1755355530833,20000.0,0.0002,2]
[379644795,1755355530861,14795.26057585,0.0002,2]
[379644796,1755355577056,163.17198128,0.00019985,2]
[379644797,1755355620150,1048.41160586,0.000199,2]
[379644798,1755355662453,151.0,0.000287,120]
[379644799,1755355680607,151.0,0.000287,120]
[379644800,1755355696040,151.0,0.000287,120]
[379644801,1755355718260,3993.15583701,0.0002,30]
[379644802,1755355718291,895.77416299,0.0002,30]
[379644809,1755355778672,163.17198128,0.00019985,2]
[379644810,1755355793793,201.06927434,0.000189,2]
[379644811,1755355795847,1013.46455237,0.000199,2]
[379644812,1755355817665,151.0,0.000195,2]
[379644813,1755355819090,-351.57,0.00020086,2]
[379644814,1755355819123,-12465.80067433,0.00020086,2]
[379644846,1755355832785,-500.0,0.00020179,2]
[379644847,1755355832795,-500.0,0.00020179,2]
[379644848,1755355832804,-500.0,0.00020179,2]
[379644849,1755355832814,-500.0,0.00020179,2]
[379644851,1755355832824,-500.0,0.00020179,2]
[379644853,1755355832833,-500.0,0.00020179,2]
[379644854,1755355832843,-265.17985577,0.00020179,2]
[379644855,1755355832852,-326.92352339,0.00020179,2]
[379644856,1755355832868,-300.34057217,0.00020179,2]
[379644857,1755355832878,-500.0,0.00020179,2]
[379644858,1755355832888,-500.0,0.00020179,2]
[379644859,1755355832902,-500.0,0.00020179,2]
[379644860,1755355832912,-500.0,0.00020179,2]
[379644861,1755355832922,-500.0,0.00020179,2]
[379644862,1755355832932,-500.0,0.00020179,2]
[379644863,1755355832941,-500.0,0.00020179,2]
[379644864,1755355832951,-500.0,0.00020179,2]
[379644865,1755355832960,-67.25801248,0.00020179,2]
[379644878,1755355840861,-550.26636029,0.00020179,2]
[379644879,1755355840871,-277.33156484,0.00020179,2]
[379644880,1755355840880,-500.0,0.00020179,2]
[379644881,1755355840889,-500.0,0.00020179,2]
[379644882,1755355840899,-530.068006,0.00020179,2]
[379644883,1755355840909,-500.0,0.00020179,2]
[379644884,1755355840919,-500.0,0.00020179,2]
[379644885,1755355840928,-500.0,0.00020179,2]
[379644886,1755355840938,-500.0,0.00020179,2]
[379644887,1755355840947,-500.0,0.00020179,2]
[379644888,1755355840957,-500.0,0.00020179,2]
[379644889,1755355840967,-500.0,0.00020179,2]
[379644890,1755355840976,-500.0,0.00020179,2]
[379644891,1755355840986,-500.0,0.00020179,2]
[379644892,1755355840997,-500.0,0.00020179,2]
[379644893,1755355841007,-500.0,0.00020179,2]
[379644894,1755355841017,-500.0,0.00020179,2]
[379644895,1755355841027,-500.0,0.00020179,2]
[379644896,1755355841037,-500.0,0.00020179,2]
[379644897,1755355841046,-500.0,0.00020179,2]
[379644898,1755355841056,-500.0,0.00020179,2]
[379644899,1755355841065,-500.0,0.00020179,2]
[379644900,1755355841075,-500.0,0.00020179,2]
[379644901,1755355841087,-500.0,0.00020179,2]
[379644902,1755355841096,-500.0,0.00020179,2]
[379644903,1755355841106,-500.0,0.00020179,2]
[379644904,1755355841118,-500.0,0.00020179,2]
[379644905,1755355841128,-500.0,0.00020179,2]
[379644906,1755355841137,-500.0,0.00020179,2]
[379644907,1755355841146,-500.0,0.00020179,2]
[379644908,1755355841156,-554.27567575,0.00020179,2]
[379644909,1755355841166,-500.0,0.00020179,2]
[379644910,1755355841175,-48984.83845208,0.0002018,2]
[379644911,1755355841185,-500.0,0.00020184,2]
[379644912,1755355841194,-592.934668,0.00020187,2]
[379644913,1755355841204,-1000.0,0.0002019,2]
[379644914,1755355841214,-1000.0,0.0002019,2]
[379644915,1755355841223,-1000.0,0.0002019,2]
[379644916,1755355841234,-1000.0,0.0002019,2]
[379644917,1755355841243,-1000.0,0.0002019,2]
[379644918,1755355841253,-240.120184,0.0002019,2]
[379644919,1755355841263,-173.70079383,0.000202,2]
[379644920,1755355841272,-500.0,0.000202,2]
[379644921,1755355841282,-525.41473135,0.000202,2]
[379644922,1755355841292,-500.0,0.000202,2]
[379644923,1755355841301,-221.79782474,0.00020296,2]
[379644924,1755355841310,-1013.46455211,0.00020408,2]
[379644925,1755355841320,-524.84,0.00020867,2]
[379644926,1755355841330,-151.0,0.00020878,2]
[379644927,1755355841339,-151.0,0.00020878,2]
[379644928,1755355841350,-151.0,0.00020878,2]
[379644929,1755355841359,-2183.31810187,0.00020878,2]
[379644930,1755355841370,-1013.46455211,0.00020916,2]
[379644931,1755355841379,-2264.10087164,0.00020933,2]
[379644932,1755355841388,-2347.87260389,0.00020988,2]
[379644933,1755355841397,-221.0,0.00021033,2]
[379644934,1755355841407,-2434.74389024,0.00021043,2]
[379644935,1755355841416,-221.0,0.00021078,2]
[379644936,1755355841426,-700.0,0.00021095,2]
[379644937,1755355841436,-2524.82941417,0.00021098,2]
[379644938,1755355841446,-580.575816,0.00021123,2]
[379644939,1755355841455,-580.575816,0.00021123,2]
[379644940,1755355841464,-580.575816,0.00021123,2]
[379644941,1755355841474,-580.575816,0.00021123,2]
[379644942,1755355841483,-580.575816,0.00021123,2]
[379644943,1755355841492,-580.575816,0.00021123,2]
[379644944,1755355841501,-2618.2481025,0.00021153,2]
[379644945,1755355841511,-366.5,0.00021181,3]
[379644946,1755355841521,-2715.12328229,0.00021208,2]
[379644947,1755355841530,-417.15472785,0.0002125,2]
[379644948,1755355841539,-160.0,0.0002125,2]
[379644949,1755355841549,-160.0,0.0002125,2]
[379644950,1755355841559,-232.11368524,0.0002125,2]
[379644951,1755355841569,-215.68093138,0.0002125,2]
[379644952,1755355841578,-160.0,0.0002125,2]
[379644953,1755355841588,-245.86,0.0002125,10]
[379644954,1755355841599,-462.1417622,0.0002126,2]
[379644955,1755355841608,-528.38334358,0.0002126,2]
[379644956,1755355841620,-2815.58284374,0.00021263,2]
[379644957,1755355841630,-2919.75940895,0.00021318,2]
[379644958,1755355841639,-221.0,0.00021329,2]
[379644959,1755355841649,-256.31744041,0.00021373,2]
[379644960,1755355841658,-1013.46455211,0.00021424,2]
[379644961,1755355841668,-168.0,0.00021445,2]
[379644962,1755355841677,-366.5,0.00021497,3]
[379644963,1755355841686,-221.0,0.00021559,2]
[379644964,1755355841696,-168.0,0.00021725,2]
[379644965,1755355841706,-366.5,0.00021813,3]
[379644966,1755355841715,-1000.0,0.00021817,2]
[379644967,1755355841725,-215.68093138,0.00021817,3]
[379644968,1755355841734,-202.02482474,0.00021817,2]
[379644969,1755355841744,-221.0,0.00021848,2]
[379644970,1755355841754,-168.0,0.0002187,2]
[379644971,1755355841764,-16401.16145643,0.00021873,3]
[379644972,1755355841773,-462.1417622,0.00021873,3]
[379644973,1755355841782,-394.13351966,0.00021905,2]
[379644974,1755355841791,-161.333849,0.00021907,10]
[379644975,1755355841801,-349.95926611,0.00021916,2]
[379644976,1755355841810,-480.0,0.00021917,3]
[379644977,1755355841819,-423.82668898,0.00021917,3]
[379644978,1755355841829,-480.0,0.00021917,3]
[379644979,1755355841838,-480.0,0.00021917,3]
[379644980,1755355841848,-248.32809646,0.00021917,3]
[379644981,1755355841861,-460.0,0.00021917,3]
[379644982,1755355841871,-480.0,0.00021917,3]
[379644983,1755355841880,-480.0,0.00021917,3]
[379644984,1755355841890,-300.8348439,0.00021917,3]
[379644985,1755355841902,-480.0,0.00021917,3]
[379644986,1755355841912,-480.0,0.00021917,3]
[379644987,1755355841922,-480.0,0.00021917,3]
[379644988,1755355841932,-480.0,0.00021917,3]
[379644989,1755355841942,-899.86,0.00021917,3]
[379644990,1755355841952,-480.0,0.00021917,3]
[379644991,1755355841961,-480.0,0.00021917,3]
[379644992,1755355841971,-480.0,0.00021917,3]
[379644993,1755355841980,-480.0,0.00021917,3]
[379644994,1755355841990,-464.85718934,0.00021917,3]
[379644995,1755355842000,-198.76266674,0.00021917,3]
[379644996,1755355842009,-480.0,0.00021917,3]
[379644997,1755355842019,-480.0,0.00021917,3]
[379644998,1755355842028,-480.0,0.00021917,3]
[379644999,1755355842038,-480.0,0.00021917,3]
[379645000,1755355842047,-480.0,0.00021917,3]
[379645001,1755355842057,-480.0,0.00021917,3]
[379645002,1755355842067,-480.0,0.00021917,3]
[379645003,1755355842077,-420.0,0.00021917,3]
[379645004,1755355842086,-480.0,0.00021917,3]
[379645005,1755355842096,-480.0,0.00021917,3]
[379645006,1755355842105,-592.79,0.00021917,3]
[379645007,1755355842116,-480.0,0.00021917,3]
[379645008,1755355842125,-480.0,0.00021917,3]
[379645009,1755355842134,-480.0,0.00021917,3]
[379645010,1755355842144,-500.0,0.00021917,3]
[379645011,1755355842153,-672.45,0.00021917,3]
[379645012,1755355842162,-480.0,0.00021917,3]
[379645013,1755355842171,-560.52,0.00021917,3]
[379645014,1755355842180,-480.0,0.00021917,3]
[379645015,1755355842189,-480.0,0.00021917,3]
[379645016,1755355842199,-460.38566954,0.00021917,3]
[379645017,1755355842208,-480.0,0.00021917,3]
[379645018,1755355842217,-480.0,0.00021917,3]
[379645019,1755355842227,-1957.43,0.00021917,3]
[379645020,1755355842236,-480.0,0.00021917,3]
[379645021,1755355842246,-460.0,0.00021917,3]
[379645022,1755355842255,-3333.53,0.00021917,3]
[379645023,1755355842264,-480.0,0.00021917,3]
[379645024,1755355842273,-682.77,0.00021917,3]
[379645025,1755355842283,-320.0,0.00021917,3]
[379645026,1755355842292,-480.0,0.00021917,3]
[379645027,1755355842302,-480.0,0.00021917,3]
[379645029,1755355842311,-480.0,0.00021917,3]
[379645031,1755355842321,-480.0,0.00021917,3]
[379645033,1755355842331,-1439.04,0.00021917,3]
[379645034,1755355842341,-780.11,0.00021917,3]
[379645036,1755355842351,-480.0,0.00021917,3]
[379645038,1755355842360,-440.0,0.00021917,3]
[379645040,1755355842371,-629.99,0.00021917,3]
[379645042,1755355842380,-480.0,0.00021917,3]
[379645044,1755355842390,-382.5249557,0.00021917,3]
[379645046,1755355842399,-480.0,0.00021917,3]
[379645048,1755355842408,-480.0,0.00021917,3]